[Event "Late-Titled-Tuesday-Blitz-February-27-2024"]
[Site "Chess.com"]
[Date "2024.02.27"]
[Round "2"]
[White "SHIVACalypso"]
[Black "martinmena"]
[Result "0-1"]
[WhiteElo "2484"]
[BlackElo "2258"]
[TimeControl "180+1"]
[EndTime "14:17:39 PST"]
[Termination "martinmena won by resignation"]

1. c4 {[%clk 0:03:00.9]} 1... e6 {[%clk 0:02:52.1]} 2. g3 {[%clk 0:03:00.7]}
2... d5 {[%clk 0:02:52.3]} 3. Bg2 {[%clk 0:02:59.6]} 3... Nf6 {[%clk 0:02:52.8]}
4. b3 {[%clk 0:02:57.4]} 4... Be7 {[%clk 0:02:51.2]} 5. Bb2 {[%clk 0:02:57.9]}
5... O-O {[%clk 0:02:51.7]} 6. e3 {[%clk 0:02:58.3]} 6... c5 {[%clk 0:02:51.8]}
7. Nf3 {[%clk 0:02:56.9]} 7... Nc6 {[%clk 0:02:52]} 8. O-O {[%clk 0:02:56.2]}
8... b6 {[%clk 0:02:49.4]} 9. d4 {[%clk 0:02:55.9]} 9... Bb7 {[%clk 0:02:49.3]}
10. Ne5 {[%clk 0:02:55]} 10... Qc7 {[%clk 0:02:46]} 11. Nd2 {[%clk 0:02:45.1]}
11... Rad8 {[%clk 0:02:41.2]} 12. Qc1 {[%clk 0:02:38.8]} 12... Nxe5 {[%clk
0:02:35]} 13. dxe5 {[%clk 0:02:39.7]} 13... Ng4 {[%clk 0:02:30.2]} 14. Nf3
{[%clk 0:02:36.2]} 14... dxc4 {[%clk 0:02:30.6]} 15. bxc4 {[%clk 0:02:31.6]}
15... Bxf3 {[%clk 0:02:31]} 16. Bxf3 {[%clk 0:02:32.5]} 16... Nxe5 {[%clk
0:02:30.9]} 17. Bg2 {[%clk 0:02:28.8]} 17... Bf6 {[%clk 0:02:31.3]} 18. Qc2
{[%clk 0:02:22.3]} 18... Rd6 {[%clk 0:02:11.7]} 19. Rad1 {[%clk 0:02:20.6]}
19... Rfd8 {[%clk 0:02:11]} 20. f4 {[%clk 0:02:14]} 20... Ng4 {[%clk 0:02:03]}
21. Bxf6 {[%clk 0:02:10.1]} 21... gxf6 {[%clk 0:01:55]} 22. Rxd6 {[%clk
0:02:03.8]} 22... Qxd6 {[%clk 0:01:48.1]} 23. Qe2 {[%clk 0:02:02.7]} 23... f5
{[%clk 0:01:47.8]} 24. h3 {[%clk 0:01:59]} 24... Nf6 {[%clk 0:01:45.4]} 25. Bf3
{[%clk 0:01:53.8]} 25... Qd2 {[%clk 0:01:40.6]} 26. Kf2 {[%clk 0:01:53]} 26...
Qc3 {[%clk 0:01:31.1]} 27. Rd1 {[%clk 0:01:46.8]} 27... Rxd1 {[%clk 0:01:28.6]}
28. Qxd1 {[%clk 0:01:47.7]} 28... Qxc4 {[%clk 0:01:23.8]} 29. Qd2 {[%clk
0:01:47.5]} 29... b5 {[%clk 0:01:02]} 30. g4 {[%clk 0:01:46.9]} 30... fxg4
{[%clk 0:00:43.6]} 31. hxg4 {[%clk 0:01:47.8]} 31... b4 {[%clk 0:00:23.6]} 32.
g5 {[%clk 0:01:27]} 32... Nd5 {[%clk 0:00:18.5]} 33. e4 {[%clk 0:01:27]} 33...
Qc3 {[%clk 0:00:18.4]} 34. Qd1 {[%clk 0:01:11.4]} 34... Nxf4 {[%clk 0:00:17.1]}
35. Qd8+ {[%clk 0:00:54.4]} 35... Kg7 {[%clk 0:00:17.1]} 36. Kg3 {[%clk
0:00:54.6]} 36... Qe5 {[%clk 0:00:15]} 37. Qf6+ {[%clk 0:00:52.2]} 37... Qxf6
{[%clk 0:00:11.2]} 38. gxf6+ {[%clk 0:00:53.1]} 38... Kxf6 {[%clk 0:00:11.4]}
39. Kxf4 {[%clk 0:00:53.5]} 39... e5+ {[%clk 0:00:08.8]} 40. Ke3 {[%clk
0:00:51.4]} 40... c4 {[%clk 0:00:06.9]} 41. Be2 {[%clk 0:00:50.2]} 41... c3
{[%clk 0:00:06.1]} 42. Kd3 {[%clk 0:00:50.4]} 42... a5 {[%clk 0:00:05.7]} 43.
Bd1 {[%clk 0:00:50.4]} 43... Kg5 {[%clk 0:00:04.4]} 44. Kc4 {[%clk 0:00:46.8]}
44... h5 {[%clk 0:00:03.7]} 45. Kb5 {[%clk 0:00:46.2]} 45... h4 {[%clk
0:00:03.5]} 46. Kxa5 {[%clk 0:00:46.5]} 46... h3 {[%clk 0:00:03.4]} 47. Kxb4
{[%clk 0:00:42.4]} 47... h2 {[%clk 0:00:03.7]} 0-1

[Event "Late-Titled-Tuesday-Blitz-February-27-2024"]
[Site "Chess.com"]
[Date "2024.02.27"]
[Round "2"]
[White "Jahonas"]
[Black "Nf3c5"]
[Result "1-0"]
[WhiteElo "2373"]
[BlackElo "2559"]
[TimeControl "180+1"]
[EndTime "14:17:40 PST"]
[Termination "Jahonas won on time"]

1. e4 {[%clk 0:03:00.9]} 1... c5 {[%clk 0:02:55]} 2. Nf3 {[%clk 0:03:00.8]} 2...
Nc6 {[%clk 0:02:54.5]} 3. Bc4 {[%clk 0:02:58.9]} 3... e6 {[%clk 0:02:53.1]} 4.
O-O {[%clk 0:02:57.7]} 4... a6 {[%clk 0:02:49.9]} 5. d3 {[%clk 0:02:53.3]} 5...
Nf6 {[%clk 0:02:49.2]} 6. Bg5 {[%clk 0:02:51.4]} 6... h6 {[%clk 0:02:38.5]} 7.
Bh4 {[%clk 0:02:44.8]} 7... d6 {[%clk 0:02:31.6]} 8. Nc3 {[%clk 0:02:42.1]} 8...
Be7 {[%clk 0:02:31.4]} 9. a4 {[%clk 0:02:39.3]} 9... O-O {[%clk 0:02:26]} 10.
Bg3 {[%clk 0:02:26.9]} 10... d5 {[%clk 0:02:18.3]} 11. Ba2 {[%clk 0:02:21.1]}
11... Nb4 {[%clk 0:02:13.3]} 12. Re1 {[%clk 0:02:16.6]} 12... b6 {[%clk
0:01:48.3]} 13. e5 {[%clk 0:02:13]} 13... Nh5 {[%clk 0:01:36.1]} 14. Ne2 {[%clk
0:02:10.7]} 14... d4 {[%clk 0:01:20.6]} 15. Nf4 {[%clk 0:02:02.4]} 15... Nxg3
{[%clk 0:01:17.7]} 16. hxg3 {[%clk 0:02:01.5]} 16... Bb7 {[%clk 0:01:18]} 17.
Bc4 {[%clk 0:01:53.2]} 17... Qd7 {[%clk 0:01:14.8]} 18. c3 {[%clk 0:01:51.3]}
18... dxc3 {[%clk 0:01:07.4]} 19. bxc3 {[%clk 0:01:50.4]} 19... Nd5 {[%clk
0:01:08.3]} 20. Bxd5 {[%clk 0:01:49.3]} 20... Bxd5 {[%clk 0:01:08.5]} 21. c4
{[%clk 0:01:34.4]} 21... Bc6 {[%clk 0:01:08.2]} 22. Nh5 {[%clk 0:01:16.4]} 22...
Rad8 {[%clk 0:01:02.3]} 23. Re3 {[%clk 0:01:13.7]} 23... Qb7 {[%clk 0:00:34.1]}
24. Nh4 {[%clk 0:00:55.1]} 24... Rd4 {[%clk 0:00:33.6]} 25. Nf3 {[%clk 0:00:46]}
25... Rd7 {[%clk 0:00:29.5]} 26. Rb1 {[%clk 0:00:42.8]} 26... Rfd8 {[%clk
0:00:28.7]} 27. Qe2 {[%clk 0:00:40.2]} 27... Bxa4 {[%clk 0:00:24.1]} 28. Re4
{[%clk 0:00:28.9]} 28... Rxd3 {[%clk 0:00:20.9]} 29. Rg4 {[%clk 0:00:27.9]}
29... g6 {[%clk 0:00:21.4]} 30. Nh4 {[%clk 0:00:23]} 30... Bxh4 {[%clk
0:00:18.4]} 31. gxh4 {[%clk 0:00:20.5]} 31... Rd1+ {[%clk 0:00:18.6]} 32. Rxd1
{[%clk 0:00:19.8]} 32... Bxd1 {[%clk 0:00:19.2]} 33. Nf6+ {[%clk 0:00:08.9]}
33... Kg7 {[%clk 0:00:16]} 34. Qe3 {[%clk 0:00:06.2]} 34... Bxg4 {[%clk
0:00:15]} 35. Nxg4 {[%clk 0:00:06]} 35... Rd1+ {[%clk 0:00:14.6]} 36. Kh2 {[%clk
0:00:05.7]} 36... Qe7 {[%clk 0:00:14.5]} 37. Qxh6+ {[%clk 0:00:05.4]} 37... Kg8
{[%clk 0:00:12.2]} 38. Nf6+ {[%clk 0:00:05.7]} 38... Qxf6 {[%clk 0:00:07.3]} 39.
exf6 {[%clk 0:00:06.6]} 1-0

[Event "Late-Titled-Tuesday-Blitz-February-27-2024"]
[Site "Chess.com"]
[Date "2024.02.27"]
[Round "2"]
[White "chedimir"]
[Black "pfalcon1949"]
[Result "1-0"]
[WhiteElo "2415"]
[BlackElo "1902"]
[TimeControl "180+1"]
[EndTime "14:17:42 PST"]
[Termination "chedimir won by checkmate"]

1. e4 {[%clk 0:02:59.9]} 1... e6 {[%clk 0:02:59.6]} 2. d4 {[%clk 0:02:54]} 2...
d5 {[%clk 0:02:59.6]} 3. e5 {[%clk 0:02:53.7]} 3... c5 {[%clk 0:02:59]} 4. c3
{[%clk 0:02:52.8]} 4... Nc6 {[%clk 0:02:59.1]} 5. Be3 {[%clk 0:02:52.4]} 5...
Qb6 {[%clk 0:02:57.5]} 6. Qd2 {[%clk 0:02:51.3]} 6... f6 {[%clk 0:02:57.6]} 7.
Nf3 {[%clk 0:02:49.3]} 7... fxe5 {[%clk 0:02:54.3]} 8. Nxe5 {[%clk 0:02:47.4]}
8... Nf6 {[%clk 0:02:48.4]} 9. Bd3 {[%clk 0:02:43.6]} 9... cxd4 {[%clk
0:02:47.5]} 10. cxd4 {[%clk 0:02:42.9]} 10... Bb4 {[%clk 0:02:45.6]} 11. Nc3
{[%clk 0:02:41.5]} 11... O-O {[%clk 0:02:44.2]} 12. O-O {[%clk 0:02:40]} 12...
Bd7 {[%clk 0:02:39.9]} 13. Rac1 {[%clk 0:01:12]} 13... Rae8 {[%clk 0:02:35.1]}
14. a3 {[%clk 0:01:02.6]} 14... Bd6 {[%clk 0:02:32.9]} 15. f4 {[%clk 0:00:59.4]}
15... Kh8 {[%clk 0:02:31.7]} 16. b4 {[%clk 0:00:58.8]} 16... a6 {[%clk
0:02:31.1]} 17. Nxd7 {[%clk 0:00:54]} 17... Nxd7 {[%clk 0:02:29.8]} 18. Na4
{[%clk 0:00:53.4]} 18... Qd8 {[%clk 0:02:26.7]} 19. Nc5 {[%clk 0:00:53.1]} 19...
Nxc5 {[%clk 0:02:25.3]} 20. dxc5 {[%clk 0:00:50.6]} 20... Bb8 {[%clk 0:02:21.6]}
21. Rf3 {[%clk 0:00:49.7]} 21... Qf6 {[%clk 0:02:18]} 22. Rh3 {[%clk 0:00:46.2]}
22... g6 {[%clk 0:02:16.1]} 23. Rf1 {[%clk 0:00:42.6]} 23... d4 {[%clk
0:02:11.3]} 24. Bf2 {[%clk 0:00:41.4]} 24... Bxf4 {[%clk 0:02:10]} 25. Qc2
{[%clk 0:00:40.7]} 25... e5 {[%clk 0:02:05.4]} 26. Bxg6 {[%clk 0:00:38.9]} 26...
h6 {[%clk 0:01:53.3]} 27. Bxe8 {[%clk 0:00:35.7]} 27... Rxe8 {[%clk 0:01:54.2]}
28. g3 {[%clk 0:00:34.6]} 28... Bg5 {[%clk 0:01:51.4]} 29. Qe4 {[%clk
0:00:33.8]} 29... Rf8 {[%clk 0:01:48.4]} 30. Kg2 {[%clk 0:00:30.5]} 30... d3
{[%clk 0:01:40]} 31. Qxd3 {[%clk 0:00:27.3]} 31... Nd4 {[%clk 0:01:39.8]} 32.
Bxd4 {[%clk 0:00:26.7]} 32... Qc6+ {[%clk 0:01:36.4]} 33. Kg1 {[%clk 0:00:24.9]}
33... Rxf1+ {[%clk 0:01:27.8]} 34. Kxf1 {[%clk 0:00:23.4]} 34... exd4 {[%clk
0:01:27.7]} 35. Qxd4+ {[%clk 0:00:22.9]} 35... Kh7 {[%clk 0:01:22.8]} 36. Rh5
{[%clk 0:00:22.2]} 36... Qh1+ {[%clk 0:01:21.9]} 37. Kf2 {[%clk 0:00:22]} 37...
Qc6 {[%clk 0:01:17.6]} 38. h4 {[%clk 0:00:21.5]} 38... Bf6 {[%clk 0:01:12.5]}
39. Qd3+ {[%clk 0:00:20.6]} 39... Kg7 {[%clk 0:01:11.9]} 40. Qf5 {[%clk
0:00:20]} 40... a5 {[%clk 0:01:06.8]} 41. g4 {[%clk 0:00:18.3]} 41... Bd4+
{[%clk 0:01:04.8]} 42. Kg3 {[%clk 0:00:17.5]} 42... Qc7+ {[%clk 0:01:01.8]} 43.
Qf4 {[%clk 0:00:16.5]} 43... Bf2+ {[%clk 0:00:59.1]} 44. Kf3 {[%clk 0:00:16.1]}
44... Qxf4+ {[%clk 0:00:56.3]} 45. Kxf4 {[%clk 0:00:16]} 45... Bd4 {[%clk
0:00:56.3]} 46. b5 {[%clk 0:00:14.6]} 46... Bb2 {[%clk 0:00:53.4]} 47. c6 {[%clk
0:00:14.2]} 47... bxc6 {[%clk 0:00:52.3]} 48. bxc6 {[%clk 0:00:14.3]} 48... Bxa3
{[%clk 0:00:52.7]} 49. Rxa5 {[%clk 0:00:13.8]} 49... Bd6+ {[%clk 0:00:52.9]} 50.
Kf5 {[%clk 0:00:13.9]} 50... Bh2 {[%clk 0:00:51.8]} 51. c7 {[%clk 0:00:13.1]}
51... Bxc7 {[%clk 0:00:50.9]} 52. Ra7 {[%clk 0:00:13.1]} 52... Kf8 {[%clk
0:00:51.8]} 53. Rxc7 {[%clk 0:00:13.5]} 53... h5 {[%clk 0:00:52.7]} 54. gxh5
{[%clk 0:00:13]} 54... Ke8 {[%clk 0:00:52.9]} 55. Ke6 {[%clk 0:00:13.1]} 55...
Kd8 {[%clk 0:00:53.8]} 56. Re7 {[%clk 0:00:13.1]} 56... Kc8 {[%clk 0:00:53.8]}
57. Kd6 {[%clk 0:00:13.4]} 57... Kd8 {[%clk 0:00:53.3]} 58. Re6 {[%clk
0:00:12.5]} 58... Kc8 {[%clk 0:00:52.9]} 59. Kc6 {[%clk 0:00:12.8]} 59... Kd8
{[%clk 0:00:52.1]} 60. Re5 {[%clk 0:00:12.6]} 60... Kc8 {[%clk 0:00:51.9]} 61.
Re8# {[%clk 0:00:12.6]} 1-0

[Event "Late-Titled-Tuesday-Blitz-February-27-2024"]
[Site "Chess.com"]
[Date "2024.02.27"]
[Round "2"]
[White "NCchamp"]
[Black "GlavkonVVS"]
[Result "1-0"]
[WhiteElo "2347"]
[BlackElo "2511"]
[TimeControl "180+1"]
[EndTime "14:17:43 PST"]
[Termination "NCchamp won by resignation"]

1. d4 {[%clk 0:02:59.8]} 1... Nf6 {[%clk 0:02:59.3]} 2. Bg5 {[%clk 0:03:00.3]}
2... c5 {[%clk 0:02:59.3]} 3. Bxf6 {[%clk 0:02:53.8]} 3... gxf6 {[%clk
0:02:59.6]} 4. d5 {[%clk 0:02:54.7]} 4... Qb6 {[%clk 0:02:59.7]} 5. Qc1 {[%clk
0:02:54.8]} 5... Bh6 {[%clk 0:02:59.4]} 6. e3 {[%clk 0:02:40.8]} 6... d6 {[%clk
0:02:57.6]} 7. c4 {[%clk 0:02:40.5]} 7... Nd7 {[%clk 0:02:57]} 8. Nc3 {[%clk
0:02:40]} 8... f5 {[%clk 0:02:55.9]} 9. Nf3 {[%clk 0:02:37.2]} 9... a6 {[%clk
0:02:55.1]} 10. Bd3 {[%clk 0:02:35.5]} 10... Nf6 {[%clk 0:02:52.5]} 11. Qc2
{[%clk 0:02:34.1]} 11... e6 {[%clk 0:02:50.7]} 12. Rb1 {[%clk 0:02:23.5]} 12...
Rg8 {[%clk 0:02:48.5]} 13. g3 {[%clk 0:02:23]} 13... Bd7 {[%clk 0:02:40.9]} 14.
a3 {[%clk 0:02:20.6]} 14... Qa5 {[%clk 0:02:35.1]} 15. b4 {[%clk 0:02:06.1]}
15... Qxa3 {[%clk 0:02:28.5]} 16. bxc5 {[%clk 0:01:25.5]} 16... Qxc5 {[%clk
0:02:17.9]} 17. Rxb7 {[%clk 0:01:24.7]} 17... exd5 {[%clk 0:01:58.8]} 18. Bxf5
{[%clk 0:01:10.5]} 18... Bc6 {[%clk 0:01:50.1]} 19. Rb1 {[%clk 0:00:45.8]} 19...
dxc4 {[%clk 0:01:48.3]} 20. e4 {[%clk 0:00:42.2]} 20... Ke7 {[%clk 0:01:31.9]}
21. O-O {[%clk 0:00:41.9]} 21... Rgb8 {[%clk 0:01:31.4]} 22. e5 {[%clk
0:00:33.5]} 22... Bxf3 {[%clk 0:01:27.4]} 23. exf6+ {[%clk 0:00:34.4]} 23...
Kxf6 {[%clk 0:01:26]} 24. Be4 {[%clk 0:00:34.3]} 24... Qh5 {[%clk 0:01:17.6]}
25. Nd5+ {[%clk 0:00:27.6]} 25... Ke5 {[%clk 0:00:39.3]} 26. Rfe1 {[%clk
0:00:07.9]} 26... Rxb1 {[%clk 0:00:38]} 27. Qxb1 {[%clk 0:00:08.3]} 27... Bd2
{[%clk 0:00:30.1]} 28. Bxf3+ {[%clk 0:00:09]} 28... Bxe1 {[%clk 0:00:30.3]} 29.
Qxe1+ {[%clk 0:00:09.9]} 29... Kd4 {[%clk 0:00:29.3]} 30. Bxh5 {[%clk
0:00:10.8]} 30... Rb8 {[%clk 0:00:27.6]} 31. Qd2+ {[%clk 0:00:10.7]} 31... Kc5
{[%clk 0:00:27.8]} 32. Ne3 {[%clk 0:00:10.7]} 32... Rb5 {[%clk 0:00:19.4]} 33.
Qd5+ {[%clk 0:00:10.6]} 33... Kb4 {[%clk 0:00:19.6]} 34. Qxc4+ {[%clk
0:00:10.7]} 34... Ka5 {[%clk 0:00:20]} 35. Be2 {[%clk 0:00:09.9]} 35... Kb6
{[%clk 0:00:16.5]} 36. Qd4+ {[%clk 0:00:08.5]} 36... Rc5 {[%clk 0:00:16]} 37.
Qxd6+ {[%clk 0:00:08.5]} 37... Rc6 {[%clk 0:00:16.4]} 38. Qb4+ {[%clk
0:00:08.7]} 38... Kc7 {[%clk 0:00:16.7]} 39. Nd5+ {[%clk 0:00:09.1]} 39... Kd7
{[%clk 0:00:16.9]} 40. Qe7+ {[%clk 0:00:09.5]} 40... Kc8 {[%clk 0:00:17]} 41.
Nf6 {[%clk 0:00:09.4]} 1-0

[Event "Late-Titled-Tuesday-Blitz-February-27-2024"]
[Site "Chess.com"]
[Date "2024.02.27"]
[Round "2"]
[White "dropstoneDP"]
[Black "karinachess1"]
[Result "1-0"]
[WhiteElo "2996"]
[BlackElo "2609"]
[TimeControl "180+1"]
[EndTime "14:17:46 PST"]
[Termination "dropstoneDP won by resignation"]

1. e4 {[%clk 0:03:00.9]} 1... e5 {[%clk 0:03:00.1]} 2. Nf3 {[%clk 0:03:01.1]}
2... Nc6 {[%clk 0:03:00.3]} 3. Bc4 {[%clk 0:03:00.6]} 3... Nf6 {[%clk
0:03:00.6]} 4. d3 {[%clk 0:02:59.7]} 4... h6 {[%clk 0:03:00.7]} 5. c3 {[%clk
0:02:53.1]} 5... d6 {[%clk 0:03:01.2]} 6. a4 {[%clk 0:02:52.8]} 6... g5 {[%clk
0:03:00.9]} 7. a5 {[%clk 0:02:52]} 7... a6 {[%clk 0:03:01.2]} 8. Qb3 {[%clk
0:02:51.3]} 8... Qe7 {[%clk 0:02:57.8]} 9. Nbd2 {[%clk 0:02:51.3]} 9... Bg7
{[%clk 0:02:56.6]} 10. Nf1 {[%clk 0:02:51.5]} 10... Nd8 {[%clk 0:02:42.8]} 11.
Ng3 {[%clk 0:02:51.4]} 11... Be6 {[%clk 0:02:42.9]} 12. Bxe6 {[%clk 0:02:48.6]}
12... fxe6 {[%clk 0:02:40.8]} 13. Be3 {[%clk 0:02:48.1]} 13... O-O {[%clk
0:02:33]} 14. Nf5 {[%clk 0:02:44.9]} 14... Qf7 {[%clk 0:02:25.6]} 15. Nxg7
{[%clk 0:02:44.9]} 15... Kxg7 {[%clk 0:02:19.9]} 16. h4 {[%clk 0:02:43.4]} 16...
g4 {[%clk 0:02:19.9]} 17. Nd2 {[%clk 0:02:43.4]} 17... Nh5 {[%clk 0:02:08.8]}
18. g3 {[%clk 0:02:39.1]} 18... d5 {[%clk 0:01:54.7]} 19. d4 {[%clk 0:02:36.7]}
19... exd4 {[%clk 0:01:50]} 20. Bxd4+ {[%clk 0:02:36.6]} 20... Kg8 {[%clk
0:01:50.6]} 21. exd5 {[%clk 0:02:34.5]} 21... exd5 {[%clk 0:01:51.5]} 22. O-O-O
{[%clk 0:02:21.2]} 22... Nc6 {[%clk 0:01:50]} 23. Bc5 {[%clk 0:02:04.8]} 23...
Rfb8 {[%clk 0:01:31.9]} 24. Rhe1 {[%clk 0:02:01.9]} 24... Nf6 {[%clk 0:01:08.4]}
25. Qa4 {[%clk 0:01:57.1]} 25... h5 {[%clk 0:01:06.1]} 26. Be3 {[%clk
0:01:45.1]} 26... Re8 {[%clk 0:01:04.9]} 27. Qf4 {[%clk 0:01:40.1]} 27... Qg6
{[%clk 0:00:50]} 28. Nb3 {[%clk 0:01:35.9]} 28... Rac8 {[%clk 0:00:32]} 29. Qg5
{[%clk 0:01:32.4]} 29... Kh7 {[%clk 0:00:20.4]} 30. Re2 {[%clk 0:01:05]} 30...
Re5 {[%clk 0:00:20.3]} 31. Qxg6+ {[%clk 0:01:03.7]} 31... Kxg6 {[%clk
0:00:21.2]} 32. Red2 {[%clk 0:01:02.6]} 32... Ne7 {[%clk 0:00:17.9]} 33. Nc5
{[%clk 0:01:00.7]} 33... b6 {[%clk 0:00:11.7]} 34. axb6 {[%clk 0:01:00.3]} 34...
cxb6 {[%clk 0:00:12.6]} 35. Nd3 {[%clk 0:01:00]} 35... Re4 {[%clk 0:00:10.9]}
36. Nf4+ {[%clk 0:00:59.8]} 36... Kf7 {[%clk 0:00:11.4]} 37. Bxb6 {[%clk
0:00:59.8]} 37... Rc6 {[%clk 0:00:05.6]} 38. Bd4 {[%clk 0:00:59.5]} 38... Nf5
{[%clk 0:00:03.4]} 39. Bxf6 {[%clk 0:00:59.2]} 39... Kxf6 {[%clk 0:00:04.3]} 40.
Nxd5+ {[%clk 0:00:59]} 40... Kf7 {[%clk 0:00:04.9]} 41. Kb1 {[%clk 0:00:58.6]}
41... a5 {[%clk 0:00:04.6]} 42. Nf4 {[%clk 0:00:58.4]} 42... Re7 {[%clk
0:00:04.7]} 43. Nxh5 {[%clk 0:00:58.3]} 43... Rb7 {[%clk 0:00:04.6]} 44. Ka2
{[%clk 0:00:57.6]} 44... Rcb6 {[%clk 0:00:04.8]} 45. Rd7+ {[%clk 0:00:54.2]}
45... Ke6 {[%clk 0:00:05.4]} 46. Nf4+ {[%clk 0:00:53.9]} 46... Ke5 {[%clk
0:00:05.8]} 47. R1d5+ {[%clk 0:00:52.5]} 47... Kf6 {[%clk 0:00:05]} 48. Rxb7
{[%clk 0:00:52.3]} 48... Rxb7 {[%clk 0:00:05.9]} 49. Rxa5 {[%clk 0:00:52.7]}
49... Nd6 {[%clk 0:00:04.6]} 50. Ra6 {[%clk 0:00:50.7]} 50... Ke5 {[%clk
0:00:04.6]} 51. Nd3+ {[%clk 0:00:49]} 51... Kd5 {[%clk 0:00:05.2]} 52. Nb4+
{[%clk 0:00:48.8]} 52... Ke5 {[%clk 0:00:05.8]} 53. Nd3+ {[%clk 0:00:44.1]}
53... Kd5 {[%clk 0:00:06.2]} 54. Ra4 {[%clk 0:00:44.7]} 54... Rf7 {[%clk
0:00:04.6]} 55. Rd4+ {[%clk 0:00:41.2]} 55... Kc6 {[%clk 0:00:03.2]} 56. Ne5+
{[%clk 0:00:40.8]} 1-0

[Event "Late-Titled-Tuesday-Blitz-February-27-2024"]
[Site "Chess.com"]
[Date "2024.02.27"]
[Round "2"]
[White "maximnovik"]
[Black "Genghis_K"]
[Result "0-1"]
[WhiteElo "2593"]
[BlackElo "2927"]
[TimeControl "180+1"]
[EndTime "14:17:46 PST"]
[Termination "Genghis_K won on time"]

1. e4 {[%clk 0:03:00.9]} 1... c5 {[%clk 0:02:43.6]} 2. Nf3 {[%clk 0:03:00.2]}
2... d6 {[%clk 0:02:44.2]} 3. d4 {[%clk 0:03:00.1]} 3... cxd4 {[%clk 0:02:45.1]}
4. Nxd4 {[%clk 0:03:00.2]} 4... Nf6 {[%clk 0:02:45.8]} 5. Nc3 {[%clk 0:03:00.7]}
5... a6 {[%clk 0:02:46.5]} 6. f4 {[%clk 0:03:00.3]} 6... e5 {[%clk 0:02:46.7]}
7. Nf3 {[%clk 0:03:00.5]} 7... Nbd7 {[%clk 0:02:45.4]} 8. a4 {[%clk 0:02:59.6]}
8... Be7 {[%clk 0:02:43.2]} 9. Bd3 {[%clk 0:03:00]} 9... O-O {[%clk 0:02:43]}
10. O-O {[%clk 0:03:00.5]} 10... Qc7 {[%clk 0:02:37]} 11. Kh1 {[%clk 0:02:59.5]}
11... Nc5 {[%clk 0:02:36.9]} 12. Qe1 {[%clk 0:02:56.4]} 12... Re8 {[%clk
0:02:28.4]} 13. fxe5 {[%clk 0:02:47.8]} 13... dxe5 {[%clk 0:02:29.3]} 14. Bg5
{[%clk 0:02:47.4]} 14... Be6 {[%clk 0:02:27]} 15. Nh4 {[%clk 0:02:42.5]} 15...
Nh5 {[%clk 0:02:17]} 16. Nf3 {[%clk 0:01:50.9]} 16... Rad8 {[%clk 0:01:56.2]}
17. Rd1 {[%clk 0:01:49.3]} 17... Nf4 {[%clk 0:01:48.8]} 18. Bxf4 {[%clk
0:01:34.1]} 18... exf4 {[%clk 0:01:49.7]} 19. e5 {[%clk 0:01:28.7]} 19... Nxd3
{[%clk 0:01:25.5]} 20. cxd3 {[%clk 0:01:25.9]} 20... Qb6 {[%clk 0:01:20.6]} 21.
Rd2 {[%clk 0:01:19.5]} 21... Bf5 {[%clk 0:01:09.4]} 22. d4 {[%clk 0:01:17.4]}
22... Bb4 {[%clk 0:00:57.7]} 23. Qh4 {[%clk 0:01:08.9]} 23... Bg6 {[%clk
0:00:29.5]} 24. Qxf4 {[%clk 0:01:05.7]} 24... Qa5 {[%clk 0:00:29.3]} 25. Nh4
{[%clk 0:00:58.8]} 25... Bxc3 {[%clk 0:00:22]} 26. bxc3 {[%clk 0:00:38]} 26...
Qxc3 {[%clk 0:00:22.9]} 27. Nxg6 {[%clk 0:00:35.1]} 27... fxg6 {[%clk
0:00:23.8]} 28. Qf7+ {[%clk 0:00:24.5]} 28... Kh8 {[%clk 0:00:24.2]} 29. Rdf2
{[%clk 0:00:23.6]} 29... h6 {[%clk 0:00:17.8]} 30. e6 {[%clk 0:00:17.9]} 30...
Qxd4 {[%clk 0:00:12.3]} 31. e7 {[%clk 0:00:17.9]} 31... Rc8 {[%clk 0:00:11.9]}
32. Qxg6 {[%clk 0:00:10.6]} 32... Qxf2 {[%clk 0:00:01.7]} 33. Qxe8+ {[%clk
0:00:07]} 33... Kh7 {[%clk 0:00:02.5]} 34. Qf8 {[%clk 0:00:02]} 34... Rxf8
{[%clk 0:00:01.5]} 35. exf8=Q {[%clk 0:00:01.6]} 35... Qe2 {[%clk 0:00:02.4]}
36. Qf5+ {[%clk 0:00:01.5]} 36... Kg8 {[%clk 0:00:03.3]} 37. Qc8+ {[%clk
0:00:01.4]} 37... Qe8 {[%clk 0:00:04.2]} 38. Qxe8+ {[%clk 0:00:01.2]} 38... Kh7
{[%clk 0:00:05]} 39. Qe4+ {[%clk 0:00:01.7]} 39... g6 {[%clk 0:00:05.4]} 40.
Qe7+ {[%clk 0:00:01.3]} 40... Kg8 {[%clk 0:00:06.3]} 0-1